Cogmind - Beta 10.2 @@@ ROGUE MODE // 2020.11.11 @ 03:15:16 Player: GOR Result: Destroyed by Enhanced Grunt with Neutron Cannon Performance ------------- Evolutions (3) 1500 Regions Visited (12) 2400 Robots Destroyed (118) 590 Value Destroyed (5383) 5383 Prototype IDs (240) 4800 Alien Tech Used (0) 0 Bonus (5682) 5682 TOTAL SCORE: 20355 Bonus ------- High Alert Combat Kills 867 Follower Combat Kills 838 Entered Garrisons 400 Used RIF Installer 1000 Aligned with FarCom 300 Met Data Miner 300 Used Data Conduit 3000 Friendly Fire -1023 Cogmind --------- Core Integrity 0/700 Matter 147/300 Energy 128/300 System Corruption 0% Temperature Cool (14) Movement Treading (260) Ox5 Location -7/Data Miner Parts ------- > --- POWER (1) -------- Enhanced Nuclear Core > --- PROPULSION (4) --- Medium Treads > --- UTILITY (6) ------ High-capacity Storage Unit High-capacity Storage Unit High-capacity Storage Unit High-capacity Storage Unit Improved Core Shielding Relay Coupler [Grunt] (31) > --- WEAPON (2) ------- Advanced Assault Cannon Long-range Missile Launcher > --- INVENTORY (36) --- Improved Heat Sink Improved Cooling System Improved Targeting Computer Energy Filter Improved Particle Charger Improved Medium Armor Plating Medium Reactive Plating Insulated Plating Relay Coupler [NC] (36) Relay Coupler [Grunt] (44) Relay Coupler [Grunt] (42) Relay Coupler [Duelist] (25) Relay Coupler [Hunter] (14) Relay Coupler [Hunter] (13) Relay Coupler [Hunter] (13) Skeleton Box System Restoration Module Improved Field Recycling Unit (16) Shock Rifle Lightning Gun Advanced Beam Rifle Improved EM Pulse Cannon Phase Cannon Advanced Assault Cannon Advanced Assault Cannon Gauss Cannon Proton Missile Launcher Remote Datajack Remote Datajack Ripper Peak State ------------ > --- POWER ------------ Light Angular Momentum Engine > --- PROPULSION ------- Armored Huge Wheel Armored Huge Wheel > --- UTILITY ---------- Improved Cooling System High-capacity Storage Unit High-capacity Storage Unit High-capacity Storage Unit High-capacity Storage Unit System Restoration Module > --- WEAPON ----------- Gauss Cannon Magnetic Acceleration Cannon > --- INVENTORY -------- Enhanced Nuclear Core Light Treads Advanced Treads Medium Treads Improved Cooling System High-capacity Matter Pod Energy Filter Improved Particle Charger Improved Core Shielding Medium Reactive Plating Insulated Plating Relay Coupler [NC] Relay Coupler [Grunt] Relay Coupler [Grunt] Relay Coupler [Grunt] Relay Coupler [Grunt] Relay Coupler [Duelist] Relay Coupler [Hunter] Relay Coupler [Hunter] Relay Coupler [Hunter] Skeleton Box Shock Rifle Lightning Gun Advanced Beam Rifle Improved EM Pulse Cannon Phase Cannon Advanced Assault Cannon Advanced Assault Cannon Advanced Assault Cannon Advanced Assault Cannon Proton Missile Launcher Long-range Missile Launcher Remote Datajack Remote Datajack Ripper Dirty Bomb Trap [Rating: 57] Favorites ----------- Power Light Nuclear Core Engine Reinforced Deuterium Engine Power Core Light Nuclear Core Propulsion Light Treads Treads Light Treads Leg Aluminum Leg Wheel Armored Huge Wheel Utility High-capacity Storage Unit Device Improved Heat Sink Storage High-capacity Storage Unit Processor Targeting Computer Hackware Relay Coupler [Sentry] Protection Layered Medium Armor Plating Weapon Magnetic Acceleration Cannon Energy Gun Beam Rifle Energy Cannon Phase Cannon Ballistic Gun Shotgun Ballistic Cannon Magnetic Acceleration Cannon Launcher Proton Missile Launcher Special Weapon Remote Datajack Slashing Weapon Ripper Build | -11 -10 -10 -10 -9 -8 -8 -7 -7 -7 -7 -7 -7 ------- Run | Scr Mat Min Exi Min Mat Gar Fac Gar Fac Low Low Dat Slots Evolved 6 | . . . . . 4 . 2 . . . . . Power . | . . . . . . . . . . . . . Propulsion 2 | . . . . . . . 2 . . . . . Utility 4 | . . . . . 4 . . . . . . . Weapon . | . . . . . . . . . . . . . Parts Attached 162 | . 11 2 1 5 7 25 13 23 28 24 11 12 Power 20 | . 3 . . 1 . 6 3 3 2 1 . 1 Engine 12 | . 3 . . . . 2 2 3 1 1 . . Core 8 | . . . . 1 . 4 1 . 1 . . 1 Reactor . | . . . . . . . . . . . . . Propulsion 24 | . . . . 2 3 4 5 4 3 . . 3 Treads 20 | . . . . . 3 4 5 4 1 . . 3 Leg 2 | . . . . 2 . . . . . . . . Wheel 2 | . . . . . . . . . 2 . . . Hover . | . . . . . . . . . . . . . Flight . | . . . . . . . . . . . . . Utility 46 | . 3 . 1 . 4 3 1 7 8 9 7 3 Device 16 | . . . . . 2 2 . 1 4 5 2 . Storage 8 | . 3 . 1 . 2 . . . . 2 . . Processor 2 | . . . . . . 1 . . 1 . . . Hackware 10 | . . . . . . . . 5 2 1 1 1 Protection 10 | . . . . . . . 1 1 1 1 4 2 Artifact . | . . . . . . . . . . . . . Weapon 72 | . 5 2 . 2 . 12 4 9 15 14 4 5 Energy Gun 13 | . 5 . . . . 3 . . 3 1 1 . Energy Cannon 13 | . . . . . . 2 . 3 2 5 1 . Ballistic Gun 10 | . . 1 . 1 . 4 2 1 1 . . . Ballistic Cannon 16 | . . . . . . 1 1 2 6 2 1 3 Launcher 6 | . . . . 1 . 1 . 1 . 2 . 1 Special Weapon 10 | . . 1 . . . . . 2 2 3 1 1 Impact Weapon . | . . . . . . . . . . . . . Slashing Weapon 4 | . . . . . . 1 1 . 1 1 . . Piercing Weapon . | . . . . . . . . . . . . . Special Melee Weapon . | . . . . . . . . . . . . . Unidentified Prototypes 3 | . . . . . . . . . 3 . . . Parts Lost 27 | . 3 . . . . 11 1 1 1 1 2 7 Power 5 | . . . . . . 3 1 . . . . 1 Propulsion 8 | . . . . . . 3 . . 1 . . 4 Utility 5 | . . . . . . 3 . . . . 1 1 Weapon 9 | . 3 . . . . 2 . 1 . 1 1 1 Highest Loss Streak 7 | . 1 . . . . 5 1 1 1 1 1 7 Average Slot Usage (%) 93 | . 98 100 100 100 81 98 96 98 88 83 83 82 Engine 6 | . 13 14 14 . . . 5 7 7 7 7 6 Core 2 | . . . . 13 9 8 1 . . . . . Treads 9 | . . . . . 6 18 29 30 9 . . 1 Leg 7 | . 28 28 28 28 11 . . . . . . . Wheel 5 | . . . . . . . . . 10 15 15 12 Device 5 | . . . . . 7 10 7 7 7 7 6 7 Storage 30 | . 27 28 28 28 29 36 30 30 30 29 30 30 Processor 1 | . . . . . . 6 . . . . . . Hackware 1 | . . . . . . . . 2 4 5 . 1 Protection 1 | . . . . . . . 3 3 2 . 7 5 Energy Gun 5 | . 22 25 14 5 . 1 . . . 2 2 4 Energy Cannon 3 | . . . . . . 5 . 9 1 8 2 4 Ballistic Gun 5 | . 4 . 14 22 18 7 6 . 3 . . . Ballistic Cannon 3 | . . . . . . 3 7 1 7 3 9 3 Naked Turns . | . . . . . . . . . . . . . Heaviest Build 179 | 11 56 57 73 76 145 148 153 164 165 163 179 172 Greatest Support 80 | 20 20 20 20 20 40 40 80 80 80 56 56 56 Greatest Overweight (x) 6 | . 2 2 3 3 6 3 3 2 5 2 3 3 Average Overweight (x) 2 | . 1 2 2 3 3 3 1 1 1 1 2 3 Largest Inventory Capacity 36 | 6 18 18 20 20 36 36 36 36 36 36 36 36 Average Capacity 31 | 6 16 18 19 20 29 36 36 36 36 35 36 36 Most Carried 36 | 6 17 17 18 20 20 36 36 36 36 36 36 36 Average Carried 28 | 5 12 16 17 19 17 28 34 34 35 35 35 35 Final Capacity 36 | 6 18 18 20 20 36 36 36 36 36 36 36 36 Final Carried 36 | 5 17 17 18 20 17 36 36 36 36 36 36 30 Class Distribution -------------------- 54% | Bothacker-Mutant 30% | Hauler-Mutant 14% | Mutant Dominant Class ---------------- Mutant | -10/Materials Mutant | -10/Mines Hauler-Mutant | -10/Exiles Hauler-Mutant | -9/Mines Hauler-Mutant | -8/Materials Hauler-Mutant | -8/Garrison Bothacker-Mutant | -7/Factory Bothacker-Mutant | -7/Garrison Bothacker-Mutant | -7/Factory Bothacker-Mutant | -7/Lower Caves Bothacker-Mutant | -7/Lower Caves Bothacker-Mutant | -7/Data Miner Resources | -11 -10 -10 -10 -9 -8 -8 -7 -7 -7 -7 -7 -7 ----------- Run | Scr Mat Min Exi Min Mat Gar Fac Gar Fac Low Low Dat Matter Collected 3173 | 206 310 66 . 115 81 488 184 490 452 354 427 . Remotely . | . . . . . . . . . . . . . Salvage Created 4064 | 89 409 . . 124 45 911 463 868 609 455 91 . Parts 226 | 6 35 . . 10 3 56 31 35 31 18 1 . Haulers Intercepted 3 | . 1 . . . . . 1 . 1 . . . Recyclers Shooed 1 | . 1 . . . . . . . . . . . Parts Field Recycled 2 | . . . . . . . . . . . 2 . Retrieved Matter 16 | . . . . . . . . . . . 16 . Parts Self-Destructed 28 | . . . . . . . . . . 23 5 . Prevented 7 | . . . . . . . . . . 7 . . Kills | -11 -10 -10 -10 -9 -8 -8 -7 -7 -7 -7 -7 -7 ------- Run | Scr Mat Min Exi Min Mat Gar Fac Gar Fac Low Low Dat Combat Hostiles Destroyed 81 | . 11 . . 4 1 26 2 15 6 11 5 . Guns 26 | . 11 . . 3 1 10 . . 1 . . . Cannons 39 | . . . . . . 12 2 11 5 4 5 . AOE 14 | . . . . 1 . 4 . 2 . 7 . . Classes Destroyed 16 | 2 6 . . . . 4 2 . 1 1 . . Worker 10 | . 2 . . 1 . . 5 . 2 . . . Builder 4 | . . . . . . . 3 . 1 . . . Tunneler 1 | 1 . . . . . . . . . . . . Hauler 3 | . 1 . . . . . 1 . 1 . . . Recycler 6 | 1 . . . . . . 3 . 2 . . . Minesweeper 3 | . . . . . . . . . . 3 . . Operator 2 | . 1 . . . . . 1 . . . . . Watcher 3 | . 2 . . . . . 1 . . . . . Swarmer 28 | . 6 . . 2 . 10 . . . 8 2 . Grunt 29 | . 5 . . 2 1 5 2 8 2 4 . . Brawler 2 | . . . . . . 1 . . . . 1 . Duelist 5 | . . . . . . 3 . 2 . . . . Sentry 11 | . . . . . . 6 . 3 1 . 1 . Specialist 2 | . . . . . . . 1 1 . . . . Hunter 3 | . . . . . . 1 . 2 . . . . Programmer 6 | . . . . . . . . . 4 1 1 . Best Kill Streak 9 | 2 6 . . 2 1 9 7 4 4 4 2 . Combat Bots Only 9 | . 5 . . 2 1 9 2 4 2 4 2 . Max Kills in Single Turn 8 | 1 1 . . 2 1 2 8 1 3 1 1 . Gunslinging 1 | . . . . 1 . . . . . . . . Exploded 2 | . . . . 1 . 2 . 1 . 1 . . Melee . | . . . . . . . . . . . . . Uniques/NPCs Destroyed . | . . . . . . . . . . . . . Combat | -11 -10 -10 -10 -9 -8 -8 -7 -7 -7 -7 -7 -7 -------- Run | Scr Mat Min Exi Min Mat Gar Fac Gar Fac Low Low Dat Damage Taken 6638 | . 468 . . 28 78 1441 218 1157 438 886 498 1426 Core 942 | . 34 . . . . 196 . 163 16 154 77 302 Absorbed by Shields 24 | . . . . . . 24 . . . . . . Core Remaining (%) 83 | 100 . . . 86 . 64 . . . . . . Volleys Fired 345 | 2 64 10 . 5 3 69 16 77 27 34 32 6 Largest 2 | 2 2 2 . 2 2 2 2 2 2 2 2 2 Hottest 180 | 70 115 106 . 79 46 125 83 180 170 170 103 96 Shots Fired 608 | 4 121 14 . 9 6 130 32 117 50 55 61 9 Gun 262 | 4 121 8 . 8 6 73 16 2 12 6 6 . Cannon 304 | . . . . . . 56 16 101 34 39 52 6 Launcher 14 | . . . . 1 . 1 . 4 . 6 . 2 Special 28 | . . 6 . . . . . 10 4 4 3 1 Kinetic 253 | 2 27 . . 6 6 69 32 21 30 2 52 6 Thermal 263 | 2 94 14 . 2 . 26 . 82 16 27 . . Explosive 6 | . . . . 1 . 1 . . . 2 . 2 Electromagnetic 64 | . . . . . . 34 . 4 . 20 6 . Robot Hit Streak 16 | 1 9 1 . 6 9 16 11 15 3 5 4 3 Robot Miss Streak 6 | 1 5 1 . 2 2 4 2 3 3 5 6 1 Penetration Max . | . . . . . . . . . . . . . Secondary Targets 2 | . . . . 1 . 1 . . . . . . Max Gunslinging Chain 1 | . . . . 1 . 1 . . . . . . Shots Hit Robots 339 | 2 67 2 . 5 6 75 24 72 23 31 27 5 Core Hits 171 | 2 26 1 . 6 5 40 18 21 17 19 7 9 Critical Hits 3 | . . . . . . . 1 1 . . 1 . Critical Kills 1 | . . . . . . . 1 . . . . . Critical Parts Destroyed 1 | . . . . . . . . 1 . . . . Melee Attacks 8 | . . . . . . 2 2 . 2 2 . . Impact . | . . . . . . . . . . . . . Slashing 8 | . . . . . . 2 2 . 2 2 . . Piercing . | . . . . . . . . . . . . . Sneak Attacks 1 | . . . . . . 1 . . . . . . Combat Hostiles . | . . . . . . . . . . . . . Follow-up Attacks . | . . . . . . . . . . . . . Damage Inflicted 10339 | 40 880 39 . 127 74 1697 1948 2057 805 1232 817 623 Guns 2267 | 40 880 39 . 66 74 587 326 . 152 52 51 . Cannons 4864 | . . . . . . 787 300 1833 482 614 766 82 Explosions 3043 | . . . . 61 . 230 1322 224 117 566 . 523 Melee 93 | . . . . . . 93 . . . . . . Ramming 72 | . . . . . . . . . 54 . . 18 Kinetic 3036 | 15 176 . . 52 74 549 626 337 326 33 766 82 Thermal 4772 | 25 704 39 . 14 . 340 1322 1496 308 524 . . Explosive 1134 | . . . . 61 . 157 . . . 393 . 523 Electromagnetic 1232 | . . . . . . 558 . 224 117 282 51 . Impact . | . . . . . . . . . . . . . Slashing 93 | . . . . . . 93 . . . . . . Piercing . | . . . . . . . . . . . . . Highest Corruption 3 | . . . . . . . . . 3 1 . . Average Corruption 1 | . . . . . . . . . 2 1 . . Corruption Purged 6 | . . . . . . . . . 3 3 . . Effects 17 | . . . . . . . . . 12 5 . . Message Errors 6 | . . . . . . . . . 3 3 . . Matter Fused 2 | . . . . . . . . . 2 . . . Heat Flow Errors 1 | . . . . . . . . . 1 . . . Energy Discharges 2 | . . . . . . . . . 2 . . . Data Loss (minor) 4 | . . . . . . . . . 2 2 . . Targeting Errors 2 | . . . . . . . . . 2 . . . Overload Shots . | . . . . . . . . . . . . . Overflow Damage 562 | . . . . . . 12 341 25 39 82 55 8 Projectiles 133 | . . . . . . 12 16 17 . 33 55 . Explosions 382 | . . . . . . . 325 8 . 49 . . Melee 47 | . . . . . . . . . 39 . . 8 Knockbacks 14 | . . . . . . 1 2 . 3 . 6 2 Impact 1 | . . . . . . . . . 1 . . . Kinetic 12 | . . . . . . 1 2 . 2 . 5 2 Secondary 1 | . . . . . . . . . . . 1 . Self-Inflicted Damage 513 | . . . . . . 36 218 . 147 25 . 87 Shots 12 | . . . . . . 2 4 . 3 1 . 2 Rammed 2 | . . . . . . . . . 1 . . 1 Targets Rammed 2 | . . . . . . . . . 1 . . 1 Kicked . | . . . . . . . . . . . . . Crushed . | . . . . . . . . . . . . . Highest Temperature 411 | 9 411 112 . 36 . 78 41 306 224 393 120 24 Average Temperature 83 | 6 109 54 . 20 . 13 9 89 88 94 34 11 Received Heat Transfer 1415 | . 135 . . 15 45 350 . 366 18 231 81 174 Effects 3 | . 3 . . . . . . . . . . . Shutdowns 1 | . 1 . . . . . . . . . . . Energy Bleed 2 | . 2 . . . . . . . . . . . Siege Activations . | . . . . . . . . . . . . . Robots Corrupted 1 | . . . . . . . . 1 . . . . Combat Hostiles 1 | . . . . . . . . 1 . . . . Parts Fried 5 | . . . . . . 1 . 1 . 3 . . Impact Corruptions 2 | . . . . . . . . . 1 . . 1 Robots Melted 1 | . . . . . . . . 1 . . . . Combat Hostiles 1 | . . . . . . . . 1 . . . . Parts Melted 9 | . 2 . . 2 . 1 . 3 1 . . . Heat Transferred 6531 | 74 1998 111 . 37 . 541 850 1813 398 709 . . Parts Sabotaged . | . . . . . . . . . . . . . Parts Stolen . | . . . . . . . . . . . . . Parts Stripped . | . . . . . . . . . . . . . Power Chain Reactions 5 | . . . . . . 2 . . 2 1 . . Missiles Intercepted . | . . . . . . . . . . . . . Alert | -11 -10 -10 -10 -9 -8 -8 -7 -7 -7 -7 -7 -7 ------- Run | Scr Mat Min Exi Min Mat Gar Fac Gar Fac Low Low Dat Peak Influence 1535 | 10 308 58 . 85 76 1273 1279 1535 858 . . . Initial 805 | . 6 . . . . 49 667 790 805 . . . Average 632 | 7 121 11 . 56 20 782 906 1221 706 . . . Maximum Alert Level 4 | . 1 . . . . 4 4 4 3 . . . Low Security (%) 33 | 100 90 100 . 100 100 2 . . . . . . Level 1 4 | . 9 . . . . 15 . . . . . . Level 2 11 | . . . . . . 8 20 . 52 . . . Level 3 28 | . . . . . . 52 53 26 47 . . . Level 4 21 | . . . . . . 20 26 73 . . . . Level 5 . | . . . . . . . . . . . . . High Security . | . . . . . . . . . . . . . Max Security . | . . . . . . . . . . . . . Squads Dispatched 9 | . 1 2 . . 1 . 1 . 4 . . . Investigation . | . . . . . . . . . . . . . Extermination 3 | . . . . . . . . . 3 . . . Reinforcement 3 | . 1 . . . . . 1 . 1 . . . Assault 2 | . . 2 . . . . . . . . . . Garrison 1 | . . . . . 1 . . . . . . . Intercept . | . . . . . . . . . . . . . Construction Impeded 1 | . . . . . . . 1 . . . . . Haulers Reinforced 1 | . . . . . . . . . 1 . . . Stealth | -11 -10 -10 -10 -9 -8 -8 -7 -7 -7 -7 -7 -7 --------- Run | Scr Mat Min Exi Min Mat Gar Fac Gar Fac Low Low Dat Distress Signals 7 | . 2 . . . . 3 . . 2 . . . Communications Jammed . | . . . . . . . . . . . . . Distress Signals . | . . . . . . . . . . . . . Times Spotted 163 | . 26 2 . 6 4 43 5 25 14 23 11 4 Peak Tracking Total 7 | . 5 1 . 3 3 7 2 5 6 5 5 4 Tactical Retreats 10 | . 5 . . . . 1 . 1 . 2 1 . Traps | -11 -10 -10 -10 -9 -8 -8 -7 -7 -7 -7 -7 -7 ------- Run | Scr Mat Min Exi Min Mat Gar Fac Gar Fac Low Low Dat Traps Triggered 28 | . 1 . . . . 13 3 8 3 . . . Indirectly . | . . . . . . . . . . . . . Trap Hack Attempts . | . . . . . . . . . . . . . Triggered . | . . . . . . . . . . . . . Disarmed . | . . . . . . . . . . . . . Reprogrammed . | . . . . . . . . . . . . . Reused 2 | . . . . . . . . . . 2 . . Traps Extracted . | . . . . . . . . . . . . . Installed 4 | . . . . . . . . . . 3 1 . Triggered 6 | . . . . . . . . . . 6 . . Machines | -11 -10 -10 -10 -9 -8 -8 -7 -7 -7 -7 -7 -7 ---------- Run | Scr Mat Min Exi Min Mat Gar Fac Gar Fac Low Low Dat Machines Disabled 28 | . . . . . . 5 14 6 2 1 . . Max in Single Turn 13 | . . . . . . 1 13 2 2 1 . . Garrison Relay 9 | . . . . . . 5 . 4 . . . . Phase Generator 1 | . . . . . . . . 1 . . . . Machines Sabotaged . | . . . . . . . . . . . . . Garrisons Compromised . | . . . . . . . . . . . . . Overloaded Fab Kills . | . . . . . . . . . . . . . Fab Network Shutdowns 1 | . . . . . . . 1 . . . . . Hacking | -11 -10 -10 -10 -9 -8 -8 -7 -7 -7 -7 -7 -7 --------- Run | Scr Mat Min Exi Min Mat Gar Fac Gar Fac Low Low Dat Machines Accessed 30 | . 8 . 2 . 1 . 5 . 6 4 . 4 Terminals 17 | . 8 . . . . . 3 . 5 1 . . Fabricators 1 | . . . . . . . 1 . . . . . Repair Stations . | . . . . . . . . . . . . . Recycling Units . | . . . . . . . . . . . . . Scanalyzers 1 | . . . . . . . . . 1 . . . Garrison Access 2 | . . . . . 1 . 1 . . . . . Total Hacks 79 | . 17 . 2 . 1 . 9 . 13 12 . 25 Successful 51 | . 5 . 2 . 1 . 5 . 1 12 . 25 Failed 28 | . 12 . . . . . 4 . 12 . . . Catastrophic 4 | . 1 . . . . . 2 . 1 . . . Database Lockouts . | . . . . . . . . . . . . . Manual 34 | . 17 . 1 . . . 6 . 9 1 . . Terminals 38 | . 17 . . . . . 6 . 9 6 . . Fabricators 2 | . . . . . . . 2 . . . . . Repair Stations . | . . . . . . . . . . . . . Recycling Units . | . . . . . . . . . . . . . Scanalyzers 4 | . . . . . . . . . 4 . . . Garrison Access 2 | . . . . . 1 . 1 . . . . . Terminal Hacks 44 | . 3 . 2 . . . 2 . . 12 . 25 Record 22 | . . . 1 . . . . . . 10 . 11 Part Schematic 4 | . . . . . . . . . . . . 4 Robot Schematic 7 | . . . . . . . . . . . . 7 Prototype ID Bank 3 | . . . . . . . . . . . . 3 Open Door 2 | . . . . . . . . . . 2 . . Branch Access Points 1 | . 1 . . . . . . . . . . . Terminal Index 2 | . 1 . . . . . 1 . . . . . Unreport Threat 2 | . 1 . . . . . 1 . . . . . EX-Prototype ID Bank 1 | . . . 1 . . . . . . . . . Fabricator Hacks 1 | . . . . . . . 1 . . . . . Build 1 | . . . . . . . 1 . . . . . Repair Station Hacks . | . . . . . . . . . . . . . Recycling Unit Hacks . | . . . . . . . . . . . . . Scanalyzer 1 | . . . . . . . . . 1 . . . Insert Component 1 | . . . . . . . . . 1 . . . Garrison Access Hacks 2 | . . . . . 1 . 1 . . . . . Unlock Access 2 | . . . . . 1 . 1 . . . . . Unauthorized Hacks 3 | . 2 . . . . . 1 . . . . . Terminals 3 | . 2 . . . . . 1 . . . . . Botnet 3 | . 2 . . . . . 1 . . . . . Fabricators . | . . . . . . . . . . . . . Repair Stations . | . . . . . . . . . . . . . Recycling Units . | . . . . . . . . . . . . . Scanalyzers . | . . . . . . . . . . . . . Garrison Access . | . . . . . . . . . . . . . Data Cores Recovered 2 | . 1 . . . . . 1 . . . . . Used . | . . . . . . . . . . . . . Hacking Detections 19 | . 8 . . . 1 . 4 . 6 . . . Full Trace Events . | . . . . . . . . . . . . . Feedback Events . | . . . . . . . . . . . . . Feedback Blocked . | . . . . . . . . . . . . . Robot Schematics Acquired 7 | . . . . . . . . . . . . 7 Robots Built . | . . . . . . . . . . . . . Matter . | . . . . . . . . . . . . . Time . | . . . . . . . . . . . . . Total Robot Build Rating . | . . . . . . . . . . . . . Part Schematics Acquired 4 | . . . . . . . . . . . . 4 Parts Built 2 | . . . . . . . 2 . . . . . Matter 212 | . . . . . . . 212 . . . . . Time 53 | . . . . . . . 53 . . . . . Total Part Build Rating 12 | . . . . . . . 12 . . . . . Parts Repaired . | . . . . . . . . . . . . . Time . | . . . . . . . . . . . . . Parts Recycled . | . . . . . . . . . . . . . Recycled Matter . | . . . . . . . . . . . . . Retrieved Matter . | . . . . . . . . . . . . . Retrieved Components . | . . . . . . . . . . . . . Parts Scanalyzed 1 | . . . . . . . . . 1 . . . Part Schematics Acquired . | . . . . . . . . . . . . . Parts Damaged . | . . . . . . . . . . . . . Bothacking | -11 -10 -10 -10 -9 -8 -8 -7 -7 -7 -7 -7 -7 ------------ Run | Scr Mat Min Exi Min Mat Gar Fac Gar Fac Low Low Dat Used RIF Installer 2 | . . . . . . 1 . 1 . . . . Watcher Feeds 1 | . . . . . . . . 1 . . . . Robots Hacked 15 | . . . . . . . . 7 2 3 2 1 Non-combat . | . . . . . . . . . . . . . Combat 15 | . . . . . . . . 7 2 3 2 1 Robot Hacks Applied 15 | . . . . . . . . 7 2 3 2 1 parse_system 1 | . . . . . . . . . . . . 1 disable_weapons 1 | . . . . . . . . 1 . . . . overwrite_iff 2 | . . . . . . . . 1 . 1 . . formatsys_high 11 | . . . . . . . . 5 2 2 2 . Relay Couplers Released 35 | . . . . . . 19 . 16 . . . . Machine Destruction 35 | . . . . . . 19 . 16 . . . . Attached 10 | . . . . . . . . 5 2 1 1 1 Robots Rewired 10 | . . . . . . 9 1 . . . . . Allies Hacked 2 | . . . . . . . . . 1 . 1 . Hacks Repelled . | . . . . . . . . . . . . . Allies | -11 -10 -10 -10 -9 -8 -8 -7 -7 -7 -7 -7 -7 -------- Run | Scr Mat Min Exi Min Mat Gar Fac Gar Fac Low Low Dat Total Allies 27 | . . 4 . . . 9 1 6 2 3 2 . Largest Group 6 | . . 4 4 4 2 6 2 4 2 2 1 . Highest-Rated Group 114 | . . 71 71 71 47 114 76 113 64 45 32 . Highest-Rated Ally 38 | . . 31 31 31 31 38 38 32 32 32 32 . Total Orders 1 | . . . . . . . . 1 . . . . STAY 1 | . . . . . . . . 1 . . . . Ally Attacks 145 | . . 4 . 22 4 51 10 23 20 7 4 . Total Damage 3321 | . . 56 . 263 85 1051 179 856 694 94 43 . Kills 31 | . . 2 . 6 1 11 1 6 3 1 . . Allies Corrupted 1 | . . . . . . . . . . . 1 . Allies Melted . | . . . . . . . . . . . . . Intel | -11 -10 -10 -10 -9 -8 -8 -7 -7 -7 -7 -7 -7 ------- Run | Scr Mat Min Exi Min Mat Gar Fac Gar Fac Low Low Dat Robot Analysis Total 115 | . . . . . . . . . . . . 115 Derelict Logs Recovered 6 | . . 1 . 3 . . . . . 1 1 . Drone Launches . | . . . . . . . . . . . . . Drone Recoveries . | . . . . . . . . . . . . . Exploration | -11 -10 -10 -10 -9 -8 -8 -7 -7 -7 -7 -7 -7 ------------- Run | Scr Mat Min Exi Min Mat Gar Fac Gar Fac Low Low Dat Turns Passed 13714 | 24 1048 552 941 1224 160 2044 677 1883 1347 1930 1749 135 Spaces Moved 7438 | 14 477 281 475 538 60 741 287 864 850 1468 1306 77 Core . | . . . . . . . . . . . . . Treads 2130 | . . . . . 26 741 287 864 212 . . . Legs 1819 | 14 477 281 475 538 34 . . . . . . . Wheels 3489 | . . . . . . . . . 638 1468 1306 77 Hover . | . . . . . . . . . . . . . Flight . | . . . . . . . . . . . . . Fastest Speed 110 | 120 120 180 180 210 210 220 180 180 120 110 120 130 Average Speed 159 | 120 169 180 196 210 231 220 181 181 135 119 124 130 Slowest Speed 300 | 120 180 180 210 210 300 220 220 200 200 120 130 130 Overloaded Moves . | . . . . . . . . . . . . . Propulsion Burnouts . | . . . . . . . . . . . . . Robots Hopped . | . . . . . . . . . . . . . Cave-ins Triggered . | . . . . . . . . . . . . . Exploration Rate (%) 63 | 4 84 70 72 94 6 84 10 99 28 99 99 76 Regions Visited 12 Branch Regions 6 Pre-discovered Areas 28 | . . . 1 1 . . . . . 1 . 25 Known Exits Taken 4 | . 1 . . . 1 . 1 . 1 . . . Unknown Exits Taken 6 | 1 . 1 1 1 . . . . . 1 1 . Scrap Searched 10 | . . 1 . 1 . . . . . 3 5 . Spaces Dug 14 | . . 6 . . . 1 2 . 4 1 . . Terrain Destroyed 213 | . . 6 . 7 . 11 29 75 19 37 18 11 Melee 6 | . . . . . . 1 2 . 2 1 . . Projectile 47 | . . 6 . . . 1 3 . 12 7 18 . AOE 160 | . . . . 7 . 9 24 75 5 29 . 11 Terrain Rammed . | . . . . . . . . . . . . . Walls Destroyed . | . . . . . . . . . . . . . Machines Disabled . | . . . . . . . . . . . . . Actions | -11 -10 -10 -10 -9 -8 -8 -7 -7 -7 -7 -7 -7 --------- Run | Scr Mat Min Exi Min Mat Gar Fac Gar Fac Low Low Dat Total 8637 | 18 592 301 487 624 75 1024 412 1069 995 1574 1366 100 Wait 273 | . 22 7 . 66 . 18 57 53 27 9 10 4 Move 7426 | 13 476 280 474 537 59 740 286 863 849 1467 1305 77 Hop . | . . . . . . . . . . . . . Pick Up 143 | 1 15 1 6 5 3 38 10 17 18 25 4 . Fast Attach 33 | . 5 . . 1 1 3 9 4 6 3 1 . Attach 38 | . 3 . . . 3 9 3 6 3 3 2 6 Detach 2 | . . . . . . . . . 2 . . . Swap 91 | . 3 2 1 4 3 13 1 13 19 18 8 6 Drop 108 | 2 4 1 6 6 3 13 11 24 25 10 3 . Fire 345 | 2 64 10 . 5 3 69 16 77 27 34 32 6 Melee 8 | . . . . . . 2 2 . 2 2 . . Ram 2 | . . . . . . . . . 1 . . 1 Kick . | . . . . . . . . . . . . . Crush . | . . . . . . . . . . . . . Escape Stasis 50 | . . . . . . 22 . 12 16 . . . Rewire 114 | . . . . . . 97 17 . . . . . Trap 4 | . . . . . . . . . . 3 1 . Miscellaneous . | . . . . . . . . . . . . . Route ------- -11/Scrapyard -10/Materials (discovered 5 exits: *Mat x3 / *Min x2) -10/Mines (discovered 3 exits: *Mat x2 / *Exi) -10/Exiles (discovered 2 exits: [*Min x2]) -9/Mines (discovered 2 exits: *Mat x2) -8/Materials (discovered 3 exits: Fac / Sto / Gar) -8/Garrison (discovered 3 exits: *Fac x3) -7/Factory -7/Garrison (discovered 3 exits: *Fac x3) -7/Factory -7/Lower Caves -7/Lower Caves (discovered 2 exits: [*Fac] / *Dat) -7/Data Miner (discovered 1 exit: [*Pro]) History --------- Turn | Location | Event 1 | -11/Scrapyard | Discovered new exit (range 3) 25 | -11/Scrapyard | Entered Materials 270 | -10/Materials | Discovered new exit (range 10) 301 | -10/Materials | Build established: Mutant 516 | -10/Materials | Discovered new exit (range 15) 822 | -10/Materials | Identified exit to Mines 862 | -10/Materials | Discovered new exit (range 7) 1073 | -10/Materials | Entered Mines 1081 | -10/Mines | Assisted by bots powering up and referring to "LRC-V3" 1100 | -10/Mines | Identified exit to Materials 1440 | -10/Mines | Met a Derelict testing a Signal Generator 1551 | -10/Mines | Discovered exit to Materials (range 8) 1610 | -10/Mines | Deemed a non-threat by the Exiles lab entrance 1612 | -10/Mines | Discovered new exit (range 5) 1625 | -10/Mines | Entered Exiles 1625 | -10/Exiles | Accompanied by 4 allies 1756 | -10/Exiles | Met 8R-AWN 1787 | -10/Exiles | Met EX-HEX 1907 | -10/Exiles | Met EX-DEC 2069 | -10/Exiles | Discovered new exit (range 14) 2143 | -10/Exiles | Learned location of Zion (-6) 2179 | -10/Exiles | Met EX-BIN 2279 | -10/Exiles | Aligned with FarCom system 2281 | -10/Exiles | Given EX-Vault access code 2312 | -10/Exiles | Build established: Hauler-Mutant 2330 | -10/Exiles | Opened EX-Vault 2359 | -10/Exiles | Found Skeleton Box 2408 | -10/Exiles | Warned to stay clear of 0b10 Research branches 2543 | -10/Exiles | Discovered new exit (range 14) 2566 | -10/Exiles | Left Exiles lab with Skeleton Box 2566 | -10/Exiles | Entered Mines 2566 | -9/Mines | Accompanied by 4 allies 2575 | -9/Mines | Met a Derelict bent on vengeance 2727 | -9/Mines | Discovered new exit (range 13) 2817 | -9/Mines | Discovered new exit (range 9) 2974 | -9/Mines | Received a Rocket Launcher from a helpful Derelict 3046 | -9/Mines | Learned Materials stockpile data 3201 | -9/Mines | A weapon hastily lodged in a ceiling crevice suddenly fell to the ground 3425 | -9/Mines | Found a damaged Exp. Sensor Array with a note attached 3640 | -9/Mines | Learned 4 Materials zone layouts 3790 | -9/Mines | Entered Materials 3790 | -8/Materials | Accompanied by 2 allies 3790 | -8/Materials | Evolved 4 slots: Utility x4 3791 | -8/Materials | Identified exit to Factory 3791 | -8/Materials | Identified exit to Storage 3888 | -8/Materials | Garrison activated, responded to threat 3947 | -8/Materials | Identified exit to Garrison 3950 | -8/Materials | Entered Garrison 3950 | -8/Garrison | Accompanied by 2 allies 3970 | -8/Garrison | Triggered checkpoint 3996 | -8/Garrison | Triggered checkpoint 4087 | -8/Garrison | Garrison Relay disabled 4354 | -8/Garrison | Lost 3 parts (1p1n1u) 4382 | -8/Garrison | Destroyed 9 combat bots 4664 | -8/Garrison | Triggered checkpoint 4670 | -8/Garrison | Triggered checkpoint 4776 | -8/Garrison | Triggered checkpoint 4820 | -8/Garrison | Triggered checkpoint 4912 | -8/Garrison | Spotted B-75 Beast 4922 | -8/Garrison | Discovered exit to Factory (range 11) 4948 | -8/Garrison | Allies destroyed B-75 Beast 4958 | -8/Garrison | Triggered checkpoint 4972 | -8/Garrison | Lost 5 parts (1p1n1u2w) 5120 | -8/Garrison | Garrison Relay disabled 5518 | -8/Garrison | Triggered checkpoint 5580 | -8/Garrison | Garrison Relay disabled 5641 | -8/Garrison | Discovered exit to Factory (range 10) 5790 | -8/Garrison | Triggered checkpoint 5825 | -8/Garrison | Garrison Relay disabled 5945 | -8/Garrison | Discovered exit to Factory (range 8) 5978 | -8/Garrison | Installed Relay Interface Framework 5994 | -8/Garrison | Entered Factory 5994 | -7/Factory | Accompanied by 2 allies 5994 | -7/Factory | Evolved 2 slots: Propulsion x2 6276 | -7/Factory | Build established: Bothacker-Mutant 6292 | -7/Factory | Fabricated System Restoration Module (x2) 6491 | -7/Factory | Local fabrication network quarantined 6559 | -7/Factory | Identified exit to Garrison 6671 | -7/Factory | Entered Garrison 6671 | -7/Garrison | Accompanied by 1 ally 6799 | -7/Garrison | Phase Generator disabled 6944 | -7/Garrison | Triggered checkpoint 6978 | -7/Garrison | Garrison Relay disabled 7164 | -7/Garrison | Triggered checkpoint 7224 | -7/Garrison | Triggered checkpoint 7304 | -7/Garrison | Triggered checkpoint 7362 | -7/Garrison | Discovered new exit (range 5) 7557 | -7/Garrison | Discovered new exit (range 7) 7580 | -7/Garrison | Expanded RIF knowledge: Patrol Navigation 7714 | -7/Garrison | Triggered checkpoint 7742 | -7/Garrison | Garrison Relay disabled 8034 | -7/Garrison | Discovered new exit (range 14) 8168 | -7/Garrison | Triggered checkpoint 8202 | -7/Garrison | Garrison Relay disabled 8334 | -7/Garrison | Triggered checkpoint 8436 | -7/Garrison | Garrison Relay disabled 8554 | -7/Garrison | Entered Factory 8554 | -7/Factory | Accompanied by 1 ally 9674 | -7/Factory | Discovered new exit (range 8) 9686 | -7/Factory | Identified exit to Lower Caves 9901 | -7/Factory | Entered Lower Caves 10356 | -7/Lower Caves | Attracted the attention of an 0b10 base 10424 | -7/Lower Caves | Learned Factory emergency access door positions 10424 | -7/Lower Caves | Learned Factory stockpile data 10424 | -7/Lower Caves | Learned Factory terminal intel 10424 | -7/Lower Caves | Learned Research terminal intel 10546 | -7/Lower Caves | Encountered a Warlord checkpoint 10630 | -7/Lower Caves | Learned location of Extension (-6) 10630 | -7/Lower Caves | Learned location of 1 exit from Research 10630 | -7/Lower Caves | Learned Factory terminal intel 10630 | -7/Lower Caves | Learned Extension terminal intel 10923 | -7/Lower Caves | Discovered new exit (range 10) 11339 | -7/Lower Caves | Attracted the attention of an 0b10 checkpoint 11368 | -7/Lower Caves | Learned location of 1 exit from Factory 11831 | -7/Lower Caves | Entered another Lower Caves area 11831 | -7/Lower Caves | Accompanied by 1 ally 11872 | -7/Lower Caves | Discovered new exit (range 16) 12758 | -7/Lower Caves | Discovered new exit (range 14) 12881 | -7/Lower Caves | Attracted the attention of an 0b10 checkpoint 12899 | -7/Lower Caves | Core integrity fell below 50% 12971 | -7/Lower Caves | Learned 8 Factory zone layouts 13580 | -7/Lower Caves | Entered Data Miner 13580 | -7/Data Miner | Discovered new exit (range 6) 13605 | -7/Data Miner | Met Data Miner 13639 | -7/Data Miner | Learned location of Section 7 (-2) 13639 | -7/Data Miner | Acquired the access code to Warlord's prototype stash 13661 | -7/Data Miner | Received God Mode back door access code from Data Miner 13673 | -7/Data Miner | Interfaced with the Data Conduit 13711 | -7/Data Miner | Core integrity fell below 20% 13715 | -7/Data Miner | Destroyed by Enhanced Grunt with Neutron Cannon Last Messages --------------- 13673_ Destroyed Prototype Hackware. 13673_ Data Miner system corrupted by crushing effect. 13673_ Interfacing with system... 13673_ Data Miner disappears through a trap door. Downloaded 115 analysis records. Downloaded 709 prototype IDs. Downloaded central machine database. Downloaded 24 destinations. Downloaded encryption format records. Connection remotely terminated. 13692_ Enhanced Grunt knocked back. 13699_ Arm. Huge Wheel destroyed. 13701_ Jacked Enhanced Grunt... >>parse_system Reading system data... 13704_ Lgt. Angular Momentum Engine destroyed. 13706_ Adv. Assault Cannon destroyed. 13708_ Adv. Treads destroyed. 13710_ Lgt. Treads destroyed. 13713_ Imp. Medium Armor Plating destroyed. Map ----- +----------------------------------------------------+ | | | | | | | | | | | | | | | | | | | | | | | | | | | | | | | | | | | | | | | ????????????????????????????????????????? | | ????????????????????????????????????????? | | ????????????????????????????????????????? | | ?????????????????##?????????????????????? | | ????????????##### ######?????????????#### | | ??????#######; #???????????### # | | ?????"""""""" @ ###????????## # | | ????""""""""" ""########## < ## | | ????""""""""" g # | | ????"""""" ggg | | ???""""""" | | ???"""""" | | ???""""""" | | ????"""""" """"""""""""""""# | | ????""""""" """"############### | | ????""""""" """""###?????????????? | | ?????"""""""" "#####???????????????? | | ??????######"## "#???????????????????? | | ???????????#"### "#???????????????????? | | ???????????#"### "#???????????????????? | | ???????????#"## "#???????????????????? | | ???????????#"## "#???????????????????? | | ?????????????# "#???????????????????? | | ?????????????### "#???????????????????? | | ???????????????# "##??????????????????? | | ??????????????## ""#??????????????????? | | ???????????#?## ""#??????????????????? | | ?????????"##"#"X ""#??????????????????? | | ?????????"""""" "####???????????????? | | ?????????#""""" X"""""???????????????? | | ?????????###"#"X "##"#???????????????? | +----------------------------------------------------+ Best States ------------- Heat Dissipation 61 Energy Generation 18 Energy Capacity 300 Matter Stores 300 Matter Capacity 300 Sight Range 16 Terrain Scan Density 10 Armor Coverage 450 Resistance: KI 30 Resistance: EM 15 Evasion (%) 40 Targeting Accuracy 5 Recoil Reduction 4 Particle Charging 20 Relay Coupler Types 31 Relay Coupler Value 2 Item Schematics ----------------- Combat Drone Bay | -7/Data Miner | Free Lgt. Regenerative Plating | -7/Data Miner | Free Cmb. Gravmag System | -7/Data Miner | Free Exp. Terrain Scan Processor | -7/Data Miner | Free Robot Schematics ------------------ S-27 Virus | -7/Data Miner | Free G-50 Soldier | -7/Data Miner | Free G-67 Veteran | -7/Data Miner | Free L-41 Fighter | -7/Data Miner | Free X-72 Disruptor | -7/Data Miner | Free I-36 Angel | -7/Data Miner | Free I-47 Archangel | -7/Data Miner | Free Fabricated ------------ System Restoration Module | x2 | -7/Factory | Preloaded Alien Tech Used ----------------- None Achievements -------------- None Challenges ------------ None Game ------ Seed NeutronPrecisionMegatreads Manual? 0 Play Time 01:48:59 Cumulative 165.0 hours Start 2020.11.10 @ 16:24:57 End 2020.11.11 @ 03:15:16 Sessions 5 Manual Loads 0 Difficulty Rogue Special Mode None Game No. 108 Rogue 108 Adventurer 0 Explorer 0 Win Type - Total 8 Types 6/0/0/2/0/0/0/0/0 Lore% 49 Gallery% 76 Achievement% 63 Wizard Run 0 Options --------- ASCII 0 Keyboard 0 Movement Mouse Keybinds 1 Fullscreen 2 Font 24/Terminus Map View 76x50 Tactical HUD 1 Map Filters NONE Filters NONE Steam 1 RUN: 407d84c5-b6bc-4dad-9c38-3c996ed23fa0